bitfinex-derivatives/quotes_SOLF0:USTF0_20250507
["timestamp","ask_amount","ask_price","bid_price","bid_amount"]
[1746645458756,1.36593361,146.42,146.38,30.8]
[1746645458955,1.36593361,146.42,146.39,6.8297]
[1746645459559,1.36593361,146.42,146.39,2.0849]
[1746645460766,8.19473361,146.42,146.39,2.0849]
[1746645463062,1.36593361,146.42,146.39,8.9148]
[1746645463362,1.36593361,146.42,146.39,2.0849]
[1746645464660,1.36593361,146.42,146.39,8.9145]
[1746645466866,1.36593361,146.42,146.4,6.8295]
[1746645470467,1.36593361,146.42,146.41,6.8291]
[1746645471766,1.36593361,146.42,146.39,2.0849]
[1746645472466,1.36593361,146.42,146.4,6.8295]
[1746645473171,1.36593361,146.42,146.41,6.8291]
[1746645474364,2.1609,146.49,146.44,6.8276]
[1746645474663,14.57637852,146.57,146.42,30.76]
[1746645474870,36.9415,146.56,146.43,18.73987852]
[1746645475168,6.8242,146.52,146.43,18.73987852]
[1746645475570,36.9415,146.56,146.43,18.73987852]
[1746645475770,6.8248,146.51,146.43,18.73987852]
[1746645475970,36.9415,146.56,146.46,6.8267]
[1746645476164,36.9415,146.56,146.46,37.5867]
[1746645476771,36.9415,146.56,146.46,30.76]
[1746645477371,6.8254,146.49,146.46,30.76]
[1746645477570,36.9415,146.56,146.46,30.76]
[1746645477870,6.8262,146.48,146.46,30.76]
[1746645478472,6.8263,146.47,146.46,30.76]
[1746645478671,30.76,146.52,146.43,30.76]
[1746645478873,14.57637852,146.51,146.39,32.8449]
[1746645479270,14.57637852,146.48,146.39,30.76]
[1746645479573,6.8295,146.4,146.36,30.76]
[1746645479764,30.76,146.43,146.33,30.76]
[1746645479968,6.0202,146.42,146.33,30.76]
[1746645480169,6.8312,146.37,146.33,30.76]
[1746645480370,6.0202,146.42,146.34,6.8319]
[1746645480669,6.8309,146.38,146.34,6.8319]
[1746645481075,6.0202,146.42,146.33,30.76]
[1746645481678,20.59657852,146.42,146.32,6.8331]
[1746645481867,6.8318,146.36,146.32,6.8331]
[1746645482178,20.59657852,146.42,146.3,30.76]
[1746645482573,6.0202,146.42,146.3,30.76]
[1746645482773,6.8314,146.37,146.3,30.76]
[1746645482975,6.0202,146.42,146.3,30.76]
[1746645483276,6.8314,146.36,146.32,6.833]
[1746645483476,6.0202,146.42,146.3,30.76]
[1746645483777,6.8312,146.37,146.33,6.8325]
[1746645484077,6.0202,146.42,146.33,6.8325]
[1746645484379,6.8317,146.36,146.32,6.8331]
[1746645485183,20.59657852,146.42,146.3,30.76]
[1746645485372,6.8328,146.33,146.3,30.76]
[1746645485670,30.76,146.41,146.3,30.76]
[1746645486678,30.76,146.41,146.31,2.0416]
[1746645487175,30.76,146.41,146.32,2.0242]
[1746645487971,30.76,146.41,146.31,2.0416]
[1746645488175,6.8312,146.37,146.32,6.8333]
[1746645488673,6.8314,146.36,146.31,8.8751]
[1746645488880,30.76,146.41,146.3,30.76]
[1746645489076,14.57637852,146.39,146.3,30.76]
[1746645489280,6.8331,146.33,146.28,6.8351]
[1746645489581,30.76,146.37,146.27,30.76]
[1746645489882,6.8326,146.34,146.29,6.8343]
[1746645490178,6.8326,146.34,146.27,30.76]
[1746645490377,30.76,146.37,146.28,6.8349]
[1746645490578,2.127,146.36,146.28,6.8349]
[1746645490878,6.8331,146.33,146.28,6.8349]
[1746645491078,2.127,146.36,146.25,2.1236]
[1746645491380,6.834,146.31,146.25,2.1236]
[1746645491581,3.9906,146.35,146.26,6.8359]
[1746645491874,6.8352,146.28,146.24,35.0799]
[1746645492085,6.8352,146.28,146.24,30.78]
[1746645492680,30.78,146.33,146.24,30.78]
[1746645493182,30.78,146.33,146.24,37.6165]
[1746645493383,30.78,146.33,146.24,30.78]
[1746645493581,6.835,146.29,146.24,30.78]
[1746645494082,6.8344,146.3,146.24,30.78]
[1746645494284,30.78,146.33,146.24,30.78]
[1746645494583,6.835,146.29,146.24,30.78]
[1746645494777,30.78,146.33,146.24,30.78]
[1746645494981,30.78,146.33,146.21,30.78]
[1746645495182,6.8361,146.26,146.21,30.78]
[1746645495378,30.78,146.33,146.21,30.78]
[1746645495579,6.8358,146.27,146.21,30.78]
[1746645496083,30.78,146.33,146.21,30.78]
[1746645496279,6.8368,146.25,146.21,30.78]
[1746645496477,6.8368,146.25,146.21,37.6181]
[1746645496780,6.8368,146.25,146.21,6.8381]
[1746645496983,6.837,146.24,146.21,6.8381]
[1746645497585,6.837,146.24,146.2,37.6187]
[1746645497785,6.8375,146.23,146.2,37.6187]
[1746645497982,6.1827,146.28,146.2,30.78]
[1746645498186,6.1827,146.28,146.18,6.8395]
[1746645498388,6.8381,146.22,146.18,6.8395]
[1746645498787,6.1827,146.28,146.17,34.8754]
[1746645499089,6.8372,146.24,146.17,34.8754]
[1746645499287,6.1827,146.28,146.19,6.8389]
[1746645499490,6.8378,146.23,146.19,6.8389]
[1746645499889,6.1827,146.28,146.17,34.8754]
[1746645500292,6.1827,146.28,146.18,2.0555]
[1746645500593,6.8359,146.27,146.18,2.0555]
[1746645500778,6.1827,146.28,146.18,2.0555]
[1746645500779,30.78,146.29,146.18,2.0555]
[1746645500981,30.78,146.29,146.19,14.57637852]
[1746645501182,6.251,146.32,146.18,2.0555]
[1746645501379,6.251,146.32,146.22,14.57637852]
[1746645501582,6.251,146.32,146.23,30.8]
[1746645501789,6.251,146.32,146.24,6.1459]
[1746645502289,6.8346,146.3,146.25,6.8363]
[1746645503087,6.8346,146.3,146.24,6.1459]
[1746645503484,6.8347,146.29,146.25,6.8362]
[1746645505188,6.8344,146.3,146.26,6.836]
[1746645505391,30.8,146.33,146.24,6.1459]
[1746645505692,6.8342,146.31,146.26,6.8359]
[1746645506391,6.8342,146.31,146.27,6.8355]
[1746645506893,6.8331,146.33,146.27,30.76]
[1746645507092,34.9434,146.36,146.27,30.76]
[1746645507391,6.8337,146.32,146.27,30.76]
[1746645507593,6.8337,146.32,146.27,37.5954]
[1746645507787,34.9434,146.36,146.27,37.5954]
[1746645507987,6.8336,146.32,146.28,6.835]
[1746645508289,6.8336,146.32,146.27,30.76]
[1746645508592,6.8336,146.32,146.27,37.5955]
[1746645508893,6.8336,146.32,146.27,30.76]
[1746645509193,6.8336,146.32,146.27,37.5954]
[1746645509393,34.9434,146.36,146.27,30.76]
[1746645509796,6.835,146.29,146.24,6.1459]
[1746645510095,6.835,146.29,146.24,43.7425]
[1746645510286,34.9434,146.36,146.24,43.7425]
[1746645510490,6.8354,146.28,146.24,36.9059]
[1746645511190,34.9434,146.36,146.24,36.9059]
[1746645511394,6.8349,146.29,146.24,36.9059]
[1746645512893,34.9434,146.36,146.24,36.9059]
[1746645513299,34.9434,146.36,146.24,51.48227852]
[1746645513495,6.8335,146.32,146.28,6.8348]
[1746645513899,6.833,146.33,146.29,6.8346]
[1746645514301,34.9434,146.36,146.24,51.48227852]
[1746645514501,34.9434,146.36,146.24,36.9059]
[1746645515002,34.9434,146.36,146.25,6.8362]
[1746645515499,34.9434,146.36,146.24,36.9059]
[1746645515907,13.6647,146.34,146.24,30.76]
[1746645516108,6.8372,146.24,146.17,6.3313]
[1746645516308,30.76,146.29,146.19,30.76]
[1746645516710,30.76,146.29,146.19,45.33637852]
[1746645517008,30.76,146.29,146.19,30.76]
[1746645517610,6.836,146.27,146.22,6.8377]
[1746645517806,30.76,146.29,146.22,6.8377]
[1746645518516,6.8364,146.26,146.21,6.8381]
[1746645518811,30.76,146.29,146.21,6.8381]
[1746645519210,6.8364,146.26,146.21,6.8381]
[1746645519510,30.76,146.29,146.19,30.76]
[1746645519511,30.76,146.29,146.2,6.8386]
[1746645519714,6.8368,146.25,146.2,6.8386]
[1746645521115,6.8368,146.25,146.21,6.8383]
[1746645522715,6.8361,146.26,146.22,6.8378]
[1746645522916,30.76,146.29,146.19,30.76]
[1746645523213,6.8366,146.25,146.21,6.8382]
[1746645524012,6.8366,146.25,146.19,30.76]
[1746645524713,6.8366,146.25,146.21,6.8384]
[1746645524911,6.8363,146.26,146.19,30.76]
[1746645525414,6.8372,146.24,146.19,30.76]
[1746645526010,6.8372,146.24,146.2,6.8386]
[1746645526711,30.76,146.29,146.19,30.76]
[1746645526911,30.76,146.29,146.17,2.1712]
[1746645527213,30.76,146.29,146.16,30.76]
[1746645527613,6.8386,146.21,146.17,6.8403]
[1746645527913,6.8386,146.21,146.16,30.76]
[1746645528116,30.76,146.25,146.16,30.76]
[1746645528616,6.8382,146.22,146.17,6.8402]
[1746645528817,6.8382,146.22,146.16,30.76]
[1746645529116,6.8382,146.22,146.18,6.8396]
[1746645529516,6.8376,146.23,146.18,6.8396]
[1746645529713,30.76,146.25,146.18,6.8396]
[1746645530019,30.76,146.25,146.19,6.8391]
[1746645530318,30.76,146.25,146.16,30.76]
[1746645530615,30.78,146.28,146.16,30.76]
[1746645531315,30.78,146.28,146.2,6.8386]
[1746645531819,30.78,146.28,146.21,6.8382]
[1746645532016,30.78,146.28,146.18,14.57637852]
[1746645532217,30.78,146.28,146.2,30.78]
[1746645532814,30.74,146.31,146.2,30.78]
[1746645533016,6.8358,146.27,146.2,30.78]
[1746645533412,30.74,146.31,146.2,30.78]
[1746645533612,6.8364,146.26,146.22,6.8379]
[1746645533817,6.8364,146.26,146.2,30.78]
[1746645534418,6.8364,146.26,146.22,6.8379]
[1746645536119,6.8364,146.26,146.21,6.8382]
[1746645536617,6.8366,146.25,146.21,6.8382]
[1746645536818,44.408,146.31,146.2,30.78]
[1746645537223,6.8373,146.24,146.2,37.6188]
[1746645538115,44.408,146.31,146.21,6.8383]
[1746645538516,6.8363,146.26,146.21,6.8383]
[1746645538912,30.74,146.31,146.22,6.8376]
[1746645539113,13.6642,146.35,146.21,14.57637852]
[1746645539315,30.74,146.33,146.21,14.57637852]
[1746645539512,6.8344,146.3,146.25,6.8362]
[1746645539708,30.74,146.36,146.26,30.74]
[1746645539914,30.74,146.36,146.28,6.8349]
[1746645540317,6.8331,146.33,146.28,6.8349]
[1746645540520,30.74,146.36,146.27,6.8354]
[1746645540719,30.74,146.36,146.26,30.74]
[1746645541125,45.31637852,146.36,146.26,30.74]
[1746645541922,6.8355,146.28,146.26,30.74]
[1746645543322,30.74,146.32,146.26,30.74]
[1746645543521,30.74,146.35,146.26,30.74]
[1746645543922,6.8338,146.31,146.27,6.8354]
[1746645544221,30.74,146.35,146.26,30.74]
[1746645544423,30.74,146.35,146.26,37.5757]
[1746645544724,30.74,146.35,146.26,30.74]
[1746645545721,6.833,146.33,146.29,6.8344]
[1746645546024,30.74,146.35,146.26,30.74]
[1746645546724,37.5721,146.35,146.3,6.8342]
[1746645546925,30.74,146.35,146.26,30.74]
[1746645547224,30.74,146.38,146.26,30.74]
[1746645548525,30.74,146.38,146.27,14.57637852]
[1746645549124,6.8321,146.35,146.3,6.8341]
[1746645549422,30.74,146.38,146.31,30.74]
[1746645549618,6.8329,146.33,146.31,30.74]
[1746645549826,30.74,146.38,146.31,30.74]
[1746645550216,30.74,146.38,146.28,30.74]
[1746645550618,30.74,146.38,146.32,6.8331]
[1746645550820,30.74,146.38,146.28,30.74]
[1746645551425,30.74,146.42,146.3,14.57637852]
[1746645552321,6.8317,146.36,146.32,6.8332]
[1746645553220,30.74,146.42,146.28,30.74]
[1746645553423,14.57637852,146.41,146.28,30.74]
[1746645553825,28.23487852,146.41,146.3,6.8339]
[1746645554122,14.57637852,146.41,146.28,30.74]
[1746645554429,13.6592,146.4,146.28,30.74]
[1746645554826,13.6592,146.4,146.3,6.834]
[1746645555127,14.57637852,146.41,146.28,30.74]
[1746645555325,6.8319,146.35,146.32,6.833]
[1746645555526,30.74,146.42,146.28,30.74]
[1746645555821,6.8321,146.35,146.32,6.833]
[1746645556026,30.74,146.42,146.28,30.74]
[1746645557025,6.8324,146.34,146.31,6.8335]
[1746645557229,6.8324,146.34,146.28,30.74]
[1746645557422,30.72,146.38,146.32,6.8329]
[1746645557623,30.72,146.38,146.3,30.72]
[1746645557821,30.72,146.38,146.31,30.72]
[1746645558023,6.8311,146.37,146.33,6.8326]
[1746645558728,37.5507,146.38,146.34,6.8322]
[1746645558929,30.72,146.38,146.31,30.72]
[1746645559228,6.831,146.37,146.33,6.8325]
[1746645559527,30.72,146.41,146.31,30.72]
[1746645560430,6.8307,146.38,146.31,30.72]
[1746645560930,6.8307,146.38,146.33,6.8327]
[1746645561227,6.8307,146.38,146.31,30.72]
[1746645561630,6.8301,146.39,146.31,30.72]
[1746645561830,30.72,146.41,146.31,30.72]
[1746645562429,37.5491,146.41,146.36,6.8311]
[1746645562933,37.5491,146.41,146.31,30.72]
[1746645563125,30.72,146.41,146.37,6.8309]
[1746645563533,30.72,146.41,146.38,6.8304]
[1746645564136,30.7,146.44,146.38,6.8304]
[1746645564335,30.7,146.44,146.35,30.7]
[1746645564633,30.7,146.47,146.35,30.7]
[1746645564833,6.827,146.46,146.35,30.7]
[1746645565232,6.8274,146.45,146.35,30.7]
[1746645565834,6.8274,146.45,146.4,6.8295]
[1746645566024,6.8269,146.46,146.35,30.7]
[1746645566229,30.7,146.47,146.35,30.7]
[1746645566928,37.5265,146.47,146.42,6.8285]
[1746645567125,30.7,146.47,146.4,30.7]
[1746645567425,6.8254,146.49,146.44,6.8277]
[1746645568028,6.8254,146.49,146.45,6.8271]
[1746645568223,6.8254,146.49,146.41,6.1587]
[1746645568425,30.7,146.5,146.41,6.1587]
[1746645569237,37.525,146.5,146.41,6.1587]
[1746645569737,2.0374,146.52,146.41,6.1587]
[1746645570336,30.68,146.53,146.41,6.1587]
[1746645571441,6.8241,146.52,146.41,6.1587]
[1746645571633,30.68,146.53,146.41,6.1587]
[1746645571838,4.1619,146.54,146.41,6.1587]
[1746645572038,6.8238,146.53,146.48,6.8256]
[1746645572239,4.1619,146.54,146.47,30.68]
[1746645572642,10.9852,146.54,146.49,6.825]
[1746645573445,30.68,146.56,146.47,30.68]
[1746645574244,37.5021,146.56,146.51,6.8241]
[1746645574446,6.8221,146.56,146.51,6.8241]
[1746645574645,2.0549,146.57,146.47,30.68]
[1746645574844,8.8766,146.57,146.52,6.8237]
[1746645575041,8.8766,146.57,146.51,30.68]
[1746645575746,8.8766,146.57,146.52,6.8238]
[1746645577351,2.0549,146.57,146.51,30.68]
[1746645577838,2.0549,146.57,146.53,6.8231]
[1746645578043,37.5008,146.59,146.51,30.68]
[1746645578239,6.3412,146.61,146.51,30.68]
[1746645578445,6.8211,146.59,146.51,30.68]
[1746645578644,6.3412,146.61,146.51,30.68]
[1746645579545,6.8214,146.58,146.51,30.68]
[1746645579847,6.3412,146.61,146.51,30.68]
[1746645580149,6.8211,146.59,146.54,6.8227]
[1746645580344,6.3412,146.61,146.51,30.68]
[1746645580648,6.8215,146.58,146.53,6.8231]
[1746645580950,6.3412,146.61,146.53,6.8231]
[1746645581150,6.3412,146.61,146.51,30.68]
[1746645581545,6.8214,146.58,146.51,30.68]
[1746645582149,6.8214,146.58,146.54,6.8229]
[1746645584351,6.8214,146.58,146.55,6.8224]
[1746645584553,6.8208,146.59,146.55,6.8224]
[1746645584855,14.57637852,146.72,146.55,6.8224]
[1746645584856,14.57637852,146.67,146.55,30.66]
[1746645585153,6.8191,146.63,146.55,30.66]
[1746645585546,34.9677,146.65,146.59,6.8204]
[1746645585753,34.9677,146.65,146.55,30.66]
[1746645586352,14.57637852,146.64,146.55,30.66]
[1746645586548,14.57637852,146.64,146.55,6.8223]
[1746645586748,14.57637852,146.64,146.53,2.0762]
[1746645586948,6.8215,146.58,146.53,2.0762]
[1746645587248,6.8215,146.58,146.55,6.8223]
[1746645588052,6.8215,146.58,146.56,6.822]
[1746645588454,6.8209,146.59,146.56,6.822]
[1746645588657,6.8209,146.59,146.53,2.0762]
[1746645588658,2.1123,146.6,146.52,30.66]
[1746645589051,6.8214,146.58,146.52,30.66]
[1746645590058,6.8217,146.57,146.52,30.66]
[1746645590358,6.4779,146.6,146.52,30.66]
[1746645590957,6.8214,146.58,146.54,6.8228]
[1746645591357,6.8214,146.58,146.52,30.66]
[1746645592155,6.8214,146.58,146.55,6.8223]
[1746645592559,6.8217,146.57,146.52,30.66]
[1746645593259,6.8217,146.57,146.54,6.8228]
[1746645593656,6.8213,146.58,146.54,6.8228]
[1746645593860,6.4779,146.6,146.55,6.8223]
[1746645594258,6.8211,146.59,146.55,6.8223]
[1746645594760,6.8211,146.59,146.56,6.8221]
[1746645596164,6.8211,146.59,146.52,30.66]
[1746645596165,6.8211,146.58,146.55,6.8223]
[1746645596564,6.4779,146.6,146.52,30.66]
[1746645596765,2.1123,146.6,146.57,6.8215]
[1746645596961,30.66,146.61,146.53,2.0354]
[1746645597665,6.8207,146.59,146.56,6.8219]
[1746645597864,30.66,146.61,146.53,2.0354]
[1746645598167,2.0499,146.63,146.53,2.0354]
[1746645598467,6.8186,146.64,146.6,6.82]
[1746645598667,30.62,146.66,146.58,30.62]
[1746645598970,6.8182,146.65,146.61,6.8195]
[1746645600266,30.62,146.66,146.58,30.62]
[1746645601367,6.8191,146.63,146.6,6.8201]
[1746645601568,30.62,146.66,146.58,30.62]
[1746645601971,6.8185,146.64,146.61,6.8197]
[1746645602373,30.62,146.66,146.61,6.8197]
[1746645602573,6.8187,146.64,146.61,6.8197]
[1746645603171,6.818,146.65,146.62,6.819]
[1746645603775,6.818,146.65,146.58,30.62]
[1746645604377,6.8185,146.64,146.58,30.62]
[1746645604672,30.62,146.66,146.58,30.62]
[1746645605673,30.62,146.66,146.61,6.8194]
[1746645605965,30.62,146.66,146.58,30.62]
[1746645606175,6.8186,146.64,146.61,6.8197]
[1746645607268,6.8188,146.63,146.58,30.62]
[1746645607473,30.62,146.66,146.58,30.62]
[1746645607973,45.19637852,146.66,146.54,32.6116]
[1746645608377,6.819,146.63,146.54,32.6116]
[1746645608568,30.62,146.66,146.54,32.6116]
[1746645608875,6.8194,146.62,146.59,6.8203]
[1746645609068,6.8194,146.62,146.54,32.6116]
[1746645609869,6.8194,146.62,146.58,6.8208]
[1746645610174,6.8194,146.62,146.54,32.6116]
[1746645610375,6.8194,146.62,146.59,6.8204]
[1746645610775,6.8194,146.62,146.54,32.6116]
[1746645611071,6.8203,146.6,146.54,32.6116]
[1746645611275,30.62,146.66,146.54,32.6116]
[1746645611676,6.8195,146.62,146.58,6.8209]
[1746645612179,30.62,146.66,146.54,32.6116]
[1746645613073,45.19637852,146.66,146.54,32.6116]
[1746645613278,45.19637852,146.66,146.54,30.62]
[1746645613475,45.19637852,146.66,146.56,6.8218]
[1746645613675,9.09380099,146.62,146.56,6.8218]
[1746645613979,9.09380099,146.59,146.54,6.8228]
[1746645614180,39.71380099,146.59,146.54,6.8228]
[1746645614377,39.71380099,146.59,146.51,30.62]
[1746645614573,6.8214,146.58,146.56,6.8218]
[1746645615079,6.8214,146.58,146.55,6.8223]
[1746645615480,6.8214,146.58,146.51,30.62]
[1746645615481,30.62,146.59,146.51,30.62]
[1746645615684,1.9879,146.6,146.52,4.0641]
[1746645616681,8.8084,146.6,146.52,4.0641]
[1746645616876,1.9879,146.6,146.52,4.0641]
[1746645617577,6.8209,146.59,146.52,4.0641]
[1746645617781,1.9879,146.6,146.52,4.0641]
[1746645618180,1.9879,146.6,146.52,2.0374]
[1746645618379,6.8218,146.57,146.53,6.823]
[1746645618680,1.9879,146.6,146.53,6.823]
[1746645618886,6.8223,146.56,146.53,6.823]
[1746645619186,1.9879,146.6,146.51,30.62]
[1746645619385,6.8232,146.54,146.51,30.62]
[1746645619678,30.62,146.57,146.48,34.7238]
[1746645619886,30.62,146.57,146.51,6.8242]
[1746645620186,6.8237,146.53,146.51,6.8242]
[1746645620483,30.62,146.57,146.51,6.8242]
[1746645620686,30.62,146.57,146.48,34.7238]
[1746645620983,6.8228,146.55,146.48,34.7238]
[1746645621282,30.62,146.57,146.48,34.7238]
[1746645621779,30.62,146.57,146.53,6.8231]
[1746645621979,30.62,146.57,146.48,34.7238]
[1746645623679,37.4416,146.57,146.48,34.7238]
[1746645623889,32.6079,146.6,146.48,34.7238]
[1746645624180,6.821,146.59,146.48,34.7238]
[1746645624384,32.6079,146.6,146.48,34.7238]
[1746645624385,30.62,146.6,146.48,34.7238]
[1746645624787,6.8211,146.59,146.54,6.8227]
[1746645625282,30.62,146.6,146.52,30.62]
[1746645625488,32.658,146.6,146.52,30.62]
[1746645625883,6.822,146.57,146.52,37.4435]
[1746645626181,32.658,146.6,146.52,30.62]
[1746645626487,6.8223,146.56,146.53,6.8233]
[1746645626786,32.658,146.6,146.52,30.62]
[1746645626976,6.8223,146.56,146.52,6.8235]
[1746645627180,32.658,146.6,146.52,6.8235]
[1746645627688,6.8217,146.57,146.54,6.8229]
[1746645627881,32.658,146.6,146.53,30.58]
[1746645629191,32.658,146.6,146.55,6.8225]
[1746645629789,32.658,146.6,146.56,6.822]
[1746645630086,30.62,146.6,146.53,30.58]
[1746645630488,37.4404,146.6,146.57,6.8214]
[1746645632288,6.8207,146.59,146.57,6.8214]
[1746645632588,30.62,146.6,146.56,6.8219]
[1746645632988,30.62,146.6,146.53,30.58]
[1746645633388,6.8216,146.58,146.53,30.58]
[1746645633688,6.8216,146.58,146.55,6.8225]
[1746645634684,6.8216,146.58,146.56,6.8221]
[1746645635487,6.8208,146.59,146.56,6.8221]
[1746645636086,37.4404,146.6,146.57,6.8216]
[1746645636292,37.4404,146.6,146.53,30.58]
[1746645636485,30.62,146.6,146.48,4.1038]
[1746645636791,14.54606035,146.57,146.47,2.085]
[1746645636988,36.6273,146.56,146.47,2.085]
[1746645637189,6.8246,146.51,146.48,6.8254]
[1746645637386,36.6273,146.56,146.47,2.085]
[1746645637587,6.8247,146.51,146.48,6.8257]
[1746645637789,36.6273,146.56,146.47,2.085]
[1746645638283,36.6273,146.56,146.48,6.8256]
[1746645638692,6.8242,146.52,146.49,6.8251]
[1746645639087,6.8242,146.52,146.46,30.58]
[1746645639581,36.6273,146.56,146.46,30.58]
[1746645639785,30.58,146.56,146.46,30.58]
[1746645640187,37.4024,146.56,146.46,30.58]
[1746645640388,37.4024,146.56,146.53,6.8232]
[1746645640589,37.4024,146.56,146.5,30.6]
[1746645640792,37.4024,146.56,146.52,6.8236]
[1746645641999,30.58,146.56,146.5,30.6]
[1746645643692,30.58,146.56,146.51,6.8242]
[1746645644595,30.58,146.56,146.47,30.6]
[1746645644800,6.8235,146.53,146.47,30.6]
[1746645645003,6.8235,146.53,146.5,6.8245]
[1746645645393,6.8235,146.53,146.47,30.6]
[1746645645696,30.58,146.56,146.52,6.8237]
[1746645646192,30.58,146.56,146.47,30.6]
[1746645646498,6.8232,146.54,146.47,30.6]
[1746645646694,6.8232,146.54,146.51,6.8242]
[1746645647287,30.58,146.56,146.47,30.6]
[1746645647491,30.58,146.56,146.48,1.9961]
[1746645647796,37.4023,146.56,146.52,6.8236]
[1746645648393,37.4023,146.56,146.53,6.8234]
[1746645648593,30.58,146.56,146.49,2.1266]
[1746645648795,30.6,146.59,146.49,2.1266]
[1746645648989,30.6,146.59,146.53,6.8234]
[1746645649397,30.6,146.59,146.5,32.5739]
[1746645649792,6.8212,146.58,146.5,32.5739]
[1746645649994,30.6,146.59,146.5,32.5739]
[1746645650293,6.8222,146.56,146.52,6.8238]
[1746645650597,30.6,146.59,146.52,6.8238]
[1746645650797,30.6,146.59,146.5,32.5739]
[1746645650997,30.6,146.59,146.53,6.8233]
[1746645652792,6.8221,146.56,146.53,6.8233]
[1746645652993,30.6,146.59,146.52,6.8237]
[1746645653195,6.823,146.54,146.5,32.5739]
[1746645653397,30.6,146.59,146.5,32.5739]
[1746645653998,30.6,146.59,146.5,30.6]
[1746645654501,6.8233,146.54,146.51,6.824]
[1746645654799,6.8233,146.54,146.5,30.6]
[1746645655297,6.8233,146.54,146.51,6.8243]
[1746645655498,30.6,146.59,146.48,1.9961]
[1746645655890,6.8224,146.56,146.48,1.9961]
[1746645656199,30.6,146.59,146.48,1.9961]
[1746645656498,6.8221,146.56,146.48,1.9961]
[1746645656695,30.6,146.59,146.53,6.8234]
[1746645657199,6.8218,146.57,146.54,6.8227]
[1746645657600,30.6,146.59,146.48,1.9961]
[1746645657789,6.8213,146.58,146.56,6.822]
[1746645657995,6.8213,146.58,146.51,30.56]
[1746645658499,6.8213,146.58,146.55,6.8223]
[1746645660397,37.4208,146.59,146.57,6.8216]
[1746645660602,36.8638,146.62,146.52,1.9874]
[1746645660801,36.8638,146.62,146.52,3.9994]
[1746645661001,36.8638,146.62,146.53,2.1327]
[1746645661303,6.8202,146.6,146.57,6.8213]
[1746645661503,36.8638,146.62,146.54,30.56]
[1746645661804,6.8201,146.61,146.57,6.8214]
[1746645662105,36.8638,146.62,146.54,30.56]
[1746645662403,6.8214,146.58,146.54,6.8227]
[1746645662605,36.8638,146.62,146.52,3.9994]
[1746645663707,30.56,146.64,146.52,3.9994]
[1746645664602,6.8198,146.61,146.52,3.9994]
[1746645665209,6.8203,146.6,146.52,3.9994]
[1746645665509,30.56,146.64,146.52,3.9994]
[1746645665807,6.8201,146.61,146.57,6.8214]
[1746645666211,30.56,146.64,146.55,30.56]
[1746645666409,6.8198,146.61,146.57,6.8213]
[1746645667410,6.8204,146.6,146.57,6.8213]
[1746645667708,30.56,146.64,146.58,6.8211]
[1746645668212,6.82,146.61,146.58,6.8211]